bitfinex/quotes_SOLUSD_20260201
["timestamp","ask_amount","ask_price","bid_price","bid_amount"]
[1769980976920,29.95693847,100.71,100.66,23.52375073]
[1769980977095,9.52887716,100.7,100.65,19.46384359]
[1769980977297,13.59765504,100.68,100.64,23.52561642]
[1769980977909,9.52887716,100.68,100.64,23.52561642]
[1769980978116,13.59765504,100.7,100.65,13.58989581]
[1769980978302,9.52887716,100.68,100.64,9.93572061]
[1769980978711,1e-08,100.71,100.68,4.06101865]
[1769980978904,1e-08,100.71,100.68,41.15743899]
[1769980979106,23.52718203,100.71,100.68,27.6]
[1769980980019,13.59765505,100.71,100.66,9.52887716]
[1769980980320,5.18468226,100.76,100.66,9.52887716]
[1769980980321,10.28247199,100.77,100.7,9.52887716]
[1769980980500,29.73533423,100.77,100.72,9.52887716]
[1769980980903,4.06877788,100.75,100.7,31.66101865]
[1769980981228,13.59765504,100.75,100.7,41.18989581]
[1769980981524,4.06877788,100.75,100.71,13.58989581]
[1769980981739,9.52887716,100.74,100.69,13.58989581]
[1769980982109,23.52363732,100.75,100.7,19.45854447]
[1769980982316,4.06877788,100.75,100.71,9.52887716]
[1769980982610,4.06877788,100.75,100.72,9.52887716]
[1769980982796,4.06877788,100.75,100.7,13.99068596]
[1769980982797,4.06877788,100.75,100.71,13.58989581]
[1769980983002,9.92494711,100.76,100.71,13.58989581]
[1769980983218,19.45382427,100.76,100.71,13.58989581]
[1769980983723,13.59765504,100.74,100.69,4.06101865]
[1769980984026,13.59765504,100.74,100.69,13.58989581]
[1769980984226,9.52887716,100.73,100.69,13.99206694]
[1769980984527,4.06877788,100.72,100.66,14.88973904]
[1769980984714,4.06877788,100.7,100.66,13.99496064]
[1769980984911,13.59765504,100.72,100.68,4.06101865]
[1769980985433,13.99372499,100.76,100.71,13.58989581]
[1769980985616,23.52260215,100.76,100.71,13.58989581]
[1769980985928,6.21369411,100.77,100.72,4.06101865]
[1769980985929,25.66655233,100.77,100.72,4.06101865]
[1769980986109,13.59765504,100.76,100.72,4.06101865]
[1769980986612,4.06877788,100.76,100.72,4.06101865]
[1769980988325,13.99363615,100.76,100.72,13.98940464]
[1769980988711,4.06877788,100.76,100.72,23.5182818]
[1769980989034,25.66676429,100.77,100.72,23.5182818]
[1769980989212,29.7323347,100.77,100.72,4.06101865]
[1769980989406,29.7323347,100.77,100.72,23.51829953]
[1769980989913,23.5174918,100.78,100.73,13.47152816]
[1769980990306,23.5174918,100.78,100.73,23.39813158]
[1769980990922,48.32400102,100.78,100.73,3.942651]
[1769980991119,23.5174918,100.78,100.73,13.86987852]
[1769980991336,23.5174918,100.78,100.73,23.39875568]
[1769980992034,9.52887716,100.77,100.73,13.86987852]
[1769980992417,48.32400102,100.78,100.73,23.39875568]
[1769980993019,48.32400102,100.78,100.73,13.86987852]
[1769980993433,48.32400102,100.78,100.73,23.39875568]
[1769980993652,23.5174918,100.78,100.73,48.21757827]
[1769980995339,9.92237173,100.79,100.74,3.942651]
[1769980995632,38.39636951,100.8,100.75,13.47152816]
[1769980995843,9.52887716,100.78,100.74,3.942651]
[1769980996338,4.06557041,100.76,100.73,9.92722752]
[1769980996720,13.59444757,100.75,100.7,13.47152816]
[1769980997020,13.59444757,100.75,100.7,23.40147252]
[1769980997421,9.92654357,100.74,100.7,23.40147252]
[1769980997635,13.59444757,100.75,100.7,23.40147252]
[1769980999337,23.52037126,100.75,100.7,23.40147252]
[1769980999538,13.59444757,100.74,100.7,13.87259536]
[1769980999840,13.59444757,100.73,100.69,27.58]
[1769981000047,19.45480085,100.75,100.7,3.942651]
[1769981000431,19.45480085,100.75,100.71,3.942651]
[1769981000728,23.52037126,100.75,100.71,3.942651]
[1769981001164,4.06557041,100.75,100.71,13.47152816]
[1769981001343,23.51951946,100.76,100.71,13.47152816]
[1769981001839,19.45275502,100.77,100.73,3.942651]
[1769981002041,9.52887716,100.76,100.72,37.50851469]
[1769981002338,13.59444757,100.76,100.72,41.45116569]
[1769981003243,4.06557041,100.76,100.72,50.98004285]
[1769981003425,19.45292586,100.77,100.72,50.98004285]
[1769981003625,23.51849627,100.77,100.72,50.98004285]
[1769981003934,13.59444757,100.76,100.72,31.522651]
[1769981005051,23.51656078,100.79,100.74,13.47152816]
[1769981005227,19.45001365,100.8,100.76,3.942651]
[1769981005427,13.98566878,100.81,100.77,3.942651]
[1769981005627,9.52887716,100.8,100.77,3.942651]
[1769981005836,13.59444757,100.8,100.75,41.4473986]
[1769981006343,13.59444757,100.8,100.76,3.942651]
[1769981006549,13.53491986,100.8,100.76,3.942651]
[1769981007049,9.9216192,100.79,100.76,3.942651]
[1769981008749,23.45586032,100.8,100.76,13.86698131]
[1769981009448,48.25744762,100.8,100.76,3.942651]
[1769981009751,4.06557041,100.78,100.74,41.44870109]
[1769981010048,4.06557041,100.76,100.72,13.41200045]
[1769981010238,13.53491986,100.77,100.73,3.942651]
[1769981010630,13.53491986,100.77,100.72,46.9771322]
[1769981010631,13.53491986,100.76,100.72,27.58]
[1769981010934,13.53491986,100.76,100.72,37.50847554]
[1769981011135,13.53491986,100.76,100.72,27.58]
[1769981012155,9.92555831,100.75,100.72,27.58]
[1769981013649,19.39490776,100.75,100.72,27.58]
[1769981015253,19.39237554,100.78,100.74,3.942651]
[1769981015555,23.45706384,100.79,100.75,3.942651]
[1769981015751,9.46934945,100.8,100.75,3.942651]
[1769981015956,13.53491986,100.81,100.76,13.41200045]
[1769981016247,4.06557041,100.8,100.76,3.942651]
[1769981016555,13.53491986,100.8,100.76,3.942651]
[1769981016941,23.45598709,100.8,100.76,3.942651]
[1769981018051,3.73528597,100.77,100.72,13.43812195]
[1769981018236,13.20463542,100.75,100.71,13.89735119]
[1769981018852,13.20463542,100.75,100.71,3.9687725]
[1769981019036,9.92654357,100.74,100.71,3.9687725]
[1769981019447,13.20463542,100.75,100.71,3.9687725]
[1769981019448,9.9258682,100.75,100.72,3.9687725]
[1769981020356,19.39521765,100.75,100.72,3.9687725]
[1769981023052,9.9258682,100.75,100.72,3.9687725]
[1769981023261,13.20463542,100.74,100.7,13.89883604]
[1769981024564,23.13135854,100.74,100.7,13.89883604]
[1769981028273,4.08136436,100.75,100.71,13.69664077]
[1769981028565,14.00701515,100.75,100.71,50.74599022]
[1769981032469,14.00701515,100.75,100.67,59.30007734]
[1769981032470,4.08136436,100.75,100.68,27.58]
[1769981032671,9.46934945,100.69,100.65,3.76724994]
[1769981032872,9.46934945,100.67,100.64,3.76724994]
[1769981033071,4.08136436,100.68,100.63,3.76724994]
[1769981033252,13.55071381,100.7,100.65,13.70260401]
[1769981033855,9.46934945,100.7,100.66,3.76724994]
[1769981034256,19.40006491,100.7,100.66,3.76724994]
[1769981035174,19.40006491,100.7,100.66,13.70148575]
[1769981035374,13.55071381,100.71,100.67,3.76724994]
[1769981035575,13.55071381,100.72,100.68,3.76724994]
[1769981035786,23.47974973,100.72,100.68,3.76724994]
[1769981036777,23.47974973,100.72,100.68,13.69961747]
[1769981037074,14.01040028,100.72,100.68,13.69961747]
[1769981037249,14.01040028,100.72,100.68,23.16896692]
[1769981037856,4.08136436,100.71,100.66,9.93388131]
[1769981038176,13.55071381,100.7,100.66,3.76724994]
[1769981038697,13.55071381,100.68,100.64,3.76724994]
[1769981038993,23.48347327,100.68,100.64,13.70360979]
[1769981039781,9.46934945,100.67,100.64,3.76724994]
[1769981040860,19.40287657,100.67,100.64,3.76724994]
[1769981041461,9.46934945,100.68,100.65,3.76724994]
[1769981041662,23.48170138,100.7,100.66,3.76724994]
[1769981042377,9.46934945,100.69,100.66,3.76724994]
[1769981042680,13.55071381,100.67,100.63,31.34724994]
[1769981042982,9.93443274,100.66,100.63,3.76724994]
[1769981043175,19.40326553,100.67,100.64,3.76724994]
[1769981043484,14.01421423,100.68,100.64,13.23659939]
[1769981043969,23.48356368,100.68,100.64,3.76724994]
[1769981045270,13.55071381,100.68,100.64,13.7030905]
[1769981045463,4.08136436,100.68,100.64,23.17243995]
[1769981046275,13.55071381,100.68,100.64,13.7030905]
[1769981046586,23.4833029,100.68,100.64,13.7030905]
[1769981046792,13.55071381,100.67,100.63,13.70414931]
[1769981047385,23.48424417,100.67,100.63,3.76724994]
[1769981047985,13.42286076,100.66,100.62,14.06167569]
[1769981049584,13.42286076,100.66,100.63,9.93739441]
[1769981049790,3.95351131,100.66,100.63,9.93739441]
[1769981050492,23.35639112,100.67,100.63,14.06119062]
[1769981050789,19.40232629,100.68,100.64,4.12379621]
[1769981051386,9.46934945,100.67,100.64,4.12379621]
[1769981051766,23.35638673,100.67,100.64,4.12379621]
[1769981051962,23.35638673,100.67,100.63,4.12379621]
[1769981052167,3.95351131,100.66,100.62,19.40718383]
[1769981052364,3.95351131,100.65,100.62,4.12379621]
[1769981052570,13.42286076,100.65,100.61,4.22379621]
[1769981052887,18.16222186,100.68,100.64,4.12379621]
[1769981053094,3.95351131,100.67,100.63,23.52991298]
[1769981053980,13.88765119,100.67,100.63,23.52991298]
[1769981054388,13.88622551,100.68,100.64,13.59314566]
[1769981054592,3.95351131,100.72,100.67,13.59314566]
[1769981054887,13.42286076,100.72,100.67,13.59314566]
[1769981055489,4.27527085,100.74,100.65,27.6]
[1769981055490,19.39589302,100.74,100.7,4.12379621]
[1769981055689,23.34940433,100.74,100.7,4.12379621]
[1769981055876,13.88005488,100.74,100.7,23.52301136]
[1769981056081,3.95351131,100.74,100.7,23.52301136]
[1769981056269,13.87958311,100.75,100.71,4.12379621]
[1769981056871,3.95351131,100.72,100.68,13.59314566]
[1769981057085,3.95351131,100.72,100.69,9.93145429]
[1769981057272,3.95351131,100.73,100.69,23.52459995]
[1769981057476,3.95351131,100.73,100.7,9.93032811]
[1769981057690,9.46934945,100.74,100.7,9.93032811]
[1769981057691,9.46934945,100.74,100.7,14.05412432]
[1769981058070,23.34893256,100.75,100.7,23.52347377]
[1769981058486,9.9260718,100.75,100.71,13.59314566]
[1769981058695,23.34790337,100.76,100.71,13.59314566]
[1769981059594,23.34790337,100.76,100.71,23.52214656]
[1769981059784,48.15933647,100.76,100.71,23.52214656]
[1769981060298,13.42286076,100.75,100.71,14.05279711]
[1769981060684,13.42286076,100.75,100.71,4.12379621]
[1769981061297,13.42286076,100.75,100.71,14.05320545]
[1769981062192,13.87911857,100.75,100.71,23.5225549]
[1769981062400,3.95351131,100.71,100.65,13.59314566]
[1769981062606,13.42286076,100.67,100.63,14.06068744]
[1769981062805,9.46934945,100.66,100.63,4.12379621]
[1769981063014,13.42286076,100.65,100.61,4.22379621]
[1769981063380,3.95351131,100.65,100.61,13.69314566]
[1769981063581,13.42286076,100.66,100.61,38.54089637]
[1769981063907,13.42286076,100.66,100.62,14.06167195]
[1769981064116,23.35869674,100.65,100.61,0.1]
[1769981064473,13.42286076,100.64,100.61,0.1]
[1769981065705,9.46934945,100.63,100.61,0.1]
[1769981065915,3.95351131,100.64,100.59,0.1]
[1769981065916,3.95351131,100.61,100.59,0.1]
[1769981066106,23.36255892,100.61,100.59,0.1]
[1769981066308,9.46934945,100.6,100.59,0.1]
[1769981066506,9.50690374,100.6,100.59,0.1]
[1769981067018,24.84686988,100.62,100.57,14.0667779]
[1769981067019,13.89236102,100.62,100.57,14.0667779]
[1769981067314,13.46041505,100.61,100.57,4.12379621]
[1769981067695,13.46041505,100.6,100.55,23.67560544]
[1769981067895,13.46041505,100.6,100.56,4.12379621]
[1769981068315,23.40126389,100.6,100.56,4.12379621]
[1769981069427,9.50690374,100.59,100.56,4.12379621]
[1769981070319,9.50690374,100.59,100.55,4.22379621]
[1769981071233,9.50690374,100.59,100.56,9.94419023]
[1769981072624,9.50690374,100.6,100.56,4.12379621]
[1769981074330,13.46041505,100.6,100.56,4.12379621]
[1769981074636,13.46041505,100.58,100.55,0.1]
[1769981074838,3.95351131,100.56,100.53,27.6]
[1769981075014,9.50690374,100.55,100.52,4.12379621]
[1769981075436,13.46041505,100.56,100.52,4.12379621]
[1769981075926,13.46041505,100.56,100.51,14.07293617]
[1769981076322,9.50690374,100.55,100.51,14.07293617]
[1769981076522,23.40617968,100.55,100.51,4.12379621]
[1769981077028,23.40617968,100.55,100.51,14.07292564]
[1769981077235,9.50690374,100.55,100.51,14.07292564]
[1769981077416,13.46041505,100.56,100.52,4.12379621]
[1769981077737,23.40494961,100.56,100.52,4.12379621]
[1769981078535,14.01163526,100.57,100.53,3.87451508]
[1769981078738,23.518539,100.57,100.53,3.87451508]
[1769981079231,4.06780651,100.55,100.52,9.94780314]
[1769981079420,13.57471025,100.55,100.51,3.87451508]
[1769981080323,23.52042895,100.55,100.51,13.82373999]
[1769981082236,19.45155836,100.56,100.52,3.87451508]
[1769981082440,23.51855316,100.57,100.53,3.87451508]
[1769981082739,13.57471025,100.57,100.53,3.87451508]
[1769981083045,23.51803576,100.57,100.53,3.87451508]
[1769981083730,9.94261288,100.58,100.53,3.87451508]
[1769981084043,9.93838203,100.62,100.57,13.38141882]
[1769981084238,23.51309228,100.62,100.57,23.32467222]
[1769981085523,14.00618854,100.62,100.58,3.79381705]
[1769981085837,9.50690374,100.64,100.6,3.79381705]
[1769981086139,13.48028437,100.63,100.58,13.30072079]
[1769981086440,3.97338063,100.63,100.6,9.94035785]
[1769981087946,19.44342195,100.64,100.6,13.7341749]
[1769981088122,23.41680258,100.64,100.6,13.7341749]
[1769981088740,9.50690374,100.63,100.58,13.73572216]
[1769981089128,9.50690374,100.62,100.58,13.73572216]
[1769981089328,13.48028437,100.62,100.58,13.73572216]
[1769981089835,23.41910452,100.62,100.58,13.73572216]
[1769981090353,3.97338063,100.62,100.58,23.2426259]
[1769981090646,23.4169253,100.64,100.59,13.30072079]
[1769981091944,23.4169253,100.64,100.6,9.94035785]
[1769981092343,23.4169253,100.64,100.6,13.7341749]
[1769981093641,3.97338063,100.61,100.57,3.79381705]
[1769981093941,23.42096556,100.6,100.56,13.73762789]
[1769981096825,3.97338063,100.59,100.54,41.35917711]
[1769981097031,13.48028437,100.58,100.54,31.41381705]
[1769981097334,23.42327539,100.58,100.54,31.41381705]
[1769981097730,13.91637165,100.58,100.54,50.86681214]
[1769981097936,13.91523436,100.59,100.55,13.30072079]
[1769981098131,13.48028437,100.58,100.54,37.56609135]
[1769981098338,3.97338063,100.57,100.54,37.56609135]
[1769981098844,13.48028437,100.58,100.54,41.3599084]
[1769981099645,23.42270857,100.58,100.54,31.41381705]
[1769981099845,9.50690374,100.57,100.54,3.79381705]
[1769981100039,23.42270857,100.58,100.54,3.79381705]
[1769981100451,53.96835297,100.62,100.56,3.79381705]
[1769981100452,13.48028437,100.6,100.56,3.79381705]
[1769981101327,13.91077504,100.63,100.59,3.79381705]
[1769981101533,3.97338063,100.63,100.59,13.30072079]
[1769981101731,9.93690197,100.64,100.6,13.30072079]
[1769981102332,9.93590772,100.65,100.61,9.50690374]
[1769981102534,9.93590772,100.65,100.62,3.79381705]
[1769981103347,23.41751684,100.64,100.59,23.241444]
[1769981104455,13.48028437,100.61,100.57,23.24358823]
[1769981104973,13.48028437,100.6,100.56,3.79381705]
[1769981105138,13.48028437,100.6,100.56,13.73796545]
[1769981105654,23.42118832,100.6,100.56,13.73796545]
[1769981106378,3.97338063,100.63,100.59,3.79381705]
[1769981106650,48.25820044,100.64,100.59,13.30072079]
[1769981107054,9.50690374,100.63,100.59,3.79381705]
[1769981107555,23.2173883,100.63,100.59,13.73507946]
[1769981108446,8.04786835,100.65,100.61,13.40765367]
[1769981108648,3.03884844,100.61,100.56,3.90074993]
[1769981108944,3.03884844,100.64,100.58,3.90074993]
[1769981109151,9.50690374,100.6,100.56,3.90074993]
[1769981109351,9.50690374,100.59,100.56,3.90074993]
[1769981109551,19.44831155,100.59,100.56,3.90074993]
[1769981110158,16.82102893,100.62,100.57,13.40765367]
[1769981110860,9.93981592,100.61,100.57,13.40765367]
[1769981111161,9.93981592,100.61,100.57,3.90074993]
[1769981111543,9.93981592,100.61,100.57,13.84398179]
[1769981111755,22.48464072,100.62,100.58,3.90074993]
[1769981111963,19.44578638,100.62,100.58,3.90074993]
[1769981112171,9.50690374,100.61,100.57,13.84395019]
[1769981113072,9.50690374,100.61,100.57,3.90074993]
[1769981113860,19.44704084,100.61,100.57,3.90074993]
[1769981114954,9.50690374,100.6,100.56,3.90074993]
[1769981115151,9.50690374,100.6,100.53,24.86662341]
[1769981115152,12.54586074,100.58,100.54,3.90074993]
[1769981115750,3.03903583,100.57,100.52,3.90074993]
[1769981115957,9.50690374,100.55,100.52,3.90074993]
[1769981116159,12.54593957,100.56,100.52,13.84893901]
[1769981116765,22.49044833,100.56,100.52,3.90074993]
[1769981117067,9.50690374,100.55,100.52,3.90074993]
[1769981118173,19.45245078,100.55,100.52,3.90074993]
[1769981118675,19.45138639,100.56,100.53,3.90074993]
[1769981118874,19.44824979,100.59,100.55,3.90074993]
[1769981121775,22.4871962,100.6,100.56,3.90074993]
[1769981123273,14.21516904,100.61,100.57,3.90074993]
[1769981123481,85.01255385,100.65,100.59,13.40765367]
[1769981123482,12.54646657,100.64,100.59,13.40765367]
[1769981123980,9.50690374,100.64,100.6,3.90074993]
[1769981125189,12.54660948,100.63,100.58,3.90074993]
[1769981125357,22.48585675,100.62,100.58,3.90074993]
[1769981125976,19.44473986,100.63,100.59,3.90074993]
[1769981126275,22.48451582,100.63,100.59,3.90074993]
[1769981126476,22.48011723,100.63,100.59,3.90074993]
[1769981126681,9.50250515,100.62,100.58,3.90074993]
[1769981126850,9.50250515,100.62,100.58,13.84305667]
[1769981128283,19.44114313,100.62,100.58,13.84305667]
[1769981133871,19.44114313,100.62,100.59,3.90074993]
[1769981134386,9.93396957,100.67,100.62,3.90074993]
[1769981134563,3.04037278,100.7,100.64,3.90074993]
[1769981134762,12.54287793,100.69,100.65,3.90074993]
[1769981135261,17.24599403,100.71,100.66,3.90074993]
[1769981135462,22.47322833,100.71,100.66,13.40325508]
[1769981135671,22.47322833,100.71,100.67,3.90074993]
[1769981136385,22.47322833,100.71,100.67,13.83388229]
[1769981136579,47.29697969,100.71,100.65,13.40325508]
[1769981136787,9.50250515,100.68,100.65,3.90074993]
[1769981137386,12.54300234,100.69,100.65,3.90074993]
[1769981137679,12.54300234,100.69,100.65,13.83546006]
[1769981138283,22.47492777,100.69,100.65,13.83546006]
[1769981139867,22.47492777,100.69,100.65,3.90074993]
[1769981140367,9.50250515,100.68,100.65,3.90074993]
[1769981140893,47.30360986,100.69,100.65,3.90074993]
[1769981145269,9.93098634,100.7,100.66,3.77745229]
[1769981145478,9.93098634,100.7,100.67,3.77745229]
[1769981145770,9.9300153,100.71,100.67,3.77745229]
[1769981146582,19.43252045,100.71,100.67,3.77745229]
[1769981147966,12.54374457,100.69,100.65,3.77745229]
[1769981148587,3.04129203,100.7,100.65,13.71226316]
[1769981148888,47.29756384,100.71,100.67,3.77745229]
[1769981151369,9.9300153,100.71,100.68,3.77745229]
[1769981151681,19.43252045,100.71,100.68,3.77745229]
[1769981152075,10.12900386,100.72,100.68,3.77745229]
[1769981152586,19.63150901,100.72,100.68,3.77745229]
[1769981153199,19.63150901,100.72,100.68,13.7098737]
[1769981153398,19.63150901,100.72,100.69,3.77745229]
[1769981154289,10.12900386,100.72,100.69,3.77745229]
[1769981155405,19.63150901,100.72,100.69,3.77745229]
[1769981155585,12.54414891,100.71,100.66,13.7114145]
[1769981155889,12.54414891,100.71,100.67,3.77745229]
[1769981156994,9.93048659,100.7,100.67,3.77745229]
[1769981158079,19.43299174,100.7,100.67,3.77745229]
[1769981159794,9.92979674,100.71,100.68,3.77745229]
[1769981161779,10.12872256,100.72,100.69,3.77745229]
[1769981162697,10.12869779,100.72,100.69,3.77745229]
[1769981168011,3.04222609,100.71,100.68,4.03800771]
[1769981168214,12.54473124,100.7,100.67,4.03800771]
[1769981168508,9.50250515,100.7,100.67,4.03800771]
[1769981169105,9.93048659,100.7,100.67,4.03800771]
[1769981170506,9.9297901,100.71,100.68,4.03800771]
[1769981170717,0.2,100.72,100.7,4.03800771]
[1769981170886,0.2,100.73,100.71,4.03800771]
[1769981171088,19.63003848,100.73,100.7,4.03800771]
[1769981171396,22.87238699,100.73,100.69,31.63800771]
[1769981172205,22.87238699,100.73,100.69,37.53142053]
[1769981172413,0.2,100.73,100.7,13.96849427]
[1769981172593,10.12753102,100.73,100.7,4.03800771]
[1769981173214,10.12762679,100.73,100.7,4.03800771]
[1769981175191,19.63013194,100.73,100.7,4.03800771]
[1769981177410,3.24257422,100.71,100.67,4.03800771]
[1769981177612,12.74507937,100.71,100.67,4.03800771]
[1769981178114,12.74507937,100.71,100.67,13.97123088]
[1769981179211,9.93048659,100.7,100.67,13.97123088]
[1769981179419,19.43299174,100.7,100.67,4.03800771]
[1769981180209,47.49976234,100.71,100.67,4.03800771]
[1769981180412,19.43252032,100.71,100.68,4.03800771]
[1769981182414,12.74522854,100.7,100.66,41.55194012]
[1769981182597,9.50250515,100.7,100.67,4.03800771]
[1769981183113,9.50250515,100.7,100.67,13.97141807]
[1769981183305,9.50250515,100.7,100.67,4.03800771]
[1769981185017,22.67635202,100.7,100.67,4.03800771]
[1769981186022,19.43354317,100.7,100.67,4.03800771]
[1769981186417,22.67516981,100.71,100.68,4.03800771]
[1769981188520,22.65959755,100.71,100.68,4.03800771]
[1769981190122,19.41589356,100.72,100.68,13.9703953]
[1769981190425,25.02068351,100.73,100.7,4.03800771]
[1769981190426,0.2,100.73,100.7,4.03800771]
[1769981191728,10.12754328,100.73,100.7,4.03800771]
[1769981192628,0.2,100.73,100.7,13.96841488]
[1769981192923,19.61453597,100.73,100.7,4.03800771]
[1769981194018,9.48693289,100.72,100.68,13.96997286]
[1769981194422,10.12760308,100.73,100.67,4.03800771]
[1769981194423,9.48693289,100.7,100.67,4.03800771]
[1769981194932,19.41753324,100.7,100.67,4.03800771]
[1769981197632,3.24317071,100.68,100.65,31.54129394]
[1769981197830,12.7301036,100.68,100.65,31.54129394]
[1769981198337,3.24317071,100.66,100.63,3.96129394]
[1769981198524,12.7301036,100.65,100.62,31.54129394]
[1769981198738,9.48693289,100.64,100.61,3.96129394]
[1769981199039,19.4233874,100.64,100.61,3.96129394]
[1769981199733,9.48693289,100.63,100.61,3.96129394]
[1769981200033,3.24321779,100.61,100.56,3.96129394]
[1769981200335,9.48693289,100.61,100.57,3.96129394]
[1769981200932,9.48693289,100.6,100.57,3.96129394]
[1769981201724,9.48693289,100.59,100.57,3.96129394]
[1769981201931,9.48693289,100.59,100.56,4.06129394]
[1769981203230,19.42844331,100.59,100.56,4.06129394]
[1769981203846,22.67175207,100.59,100.56,0.1]
[1769981204019,9.48693289,100.58,100.56,0.1]
[1769981205644,12.73028557,100.57,100.53,41.63741303]
[1769981205817,9.48693289,100.56,100.53,41.63741303]
[1769981206015,9.48693289,100.56,100.53,31.69034254]
[1769981206610,9.48693289,100.56,100.54,4.09034254]
[1769981206836,9.48693289,100.57,100.55,4.09034254]
[1769981207038,9.48693289,100.58,100.55,4.09034254]
[1769981207532,9.48693289,100.58,100.55,14.035633]
[1769981208130,9.48693289,100.59,100.56,4.09034254]
[1769981208639,9.48693289,100.6,100.56,4.09034254]
[1769981209012,25.62838171,100.62,100.57,4.09034254]
[1769981209325,25.62838171,100.62,100.58,4.09034254]
[1769981209531,6.20269318,100.62,100.59,4.09034254]
[1769981209854,9.48693289,100.64,100.6,4.09034254]
[1769981210139,13.37415717,100.62,100.59,4.09034254]
[1769981210626,9.48693289,100.64,100.6,4.09034254]
[1769981211352,13.37415717,100.64,100.6,4.09034254]
[1769981211645,13.37415717,100.64,100.6,14.03042916]
[1769981211823,3.88722428,100.64,100.6,14.03042916]
[1769981212018,13.37415717,100.64,100.61,4.09034254]
[1769981212218,23.31065381,100.64,100.61,4.09034254]
[1769981213637,3.88722428,100.61,100.58,4.09034254]
[1769981213816,13.37415717,100.61,100.58,4.09034254]
[1769981215645,23.31421554,100.61,100.58,4.09034254]
[1769981216142,13.37415717,100.63,100.59,4.09034254]
[1769981216322,23.31103566,100.64,100.59,4.09034254]
[1769981216522,23.31103566,100.64,100.6,4.09034254]
[1769981216937,3.88722428,100.64,100.6,4.09034254]
[1769981217523,13.82375001,100.64,100.6,4.09034254]
[1769981217724,3.88722428,100.64,100.6,14.0305359]
[1769981218427,9.48693289,100.63,100.6,4.09034254]
[1769981218647,13.37415717,100.64,100.6,14.03063592]
[1769981219144,13.82372877,100.64,100.6,14.03063592]
[1769981220146,3.88722428,100.64,100.6,14.03063592]
[1769981220749,6.21469776,100.66,100.64,4.09034254]
[1769981221050,6.21469776,100.66,100.64,13.57727543]
[1769981221626,1e-08,100.66,100.65,4.09034254]
[1769981221844,3.88722429,100.66,100.62,40.42661603]
[1769981222036,3.88722429,100.66,100.62,13.25747884]
[1769981222231,13.37415718,100.66,100.62,3.31968314]
[1769981222427,3.88722428,100.65,100.61,22.74549016]
[1769981222645,3.88722428,100.65,100.6,3.31968314]
[1769981222646,3.88722428,100.64,100.6,3.31968314]
[1769981222840,3.88722428,100.64,100.6,12.80661603]
[1769981223037,3.88722428,100.64,100.6,12.80616002]
[1769981223237,3.88722428,100.64,100.6,22.74607587]
[1769981223629,9.48693289,100.65,100.61,3.31877635]
[1769981223836,3.88722428,100.65,100.62,9.93815859]
[1769981224733,3.88722429,100.66,100.63,3.31833075]
[1769981225133,1e-08,100.66,100.63,3.31833075]
[1769981225333,1e-08,100.66,100.63,12.80526364]
[1769981225938,1e-08,100.66,100.64,22.74123015]
[1769981226140,1e-08,100.66,100.64,3.31789027]
[1769981229857,1e-08,100.66,100.64,13.25372502]
[1769981230155,1e-08,100.66,100.65,37.08693289]
[1769981230358,3.83198391,100.71,100.65,37.08693289]
[1769981230571,3.83198391,100.71,100.67,9.48693289]
[1769981230745,3.83198391,100.71,100.67,12.80160637]
[1769981230945,13.7617554,100.71,100.67,12.80160637]
[1769981231153,3.83198391,100.71,100.67,9.48693289]
[1769981231344,6.42994554,100.73,100.67,9.48693289]
[1769981231345,3.83198391,100.72,100.68,12.80160637]
[1769981232169,3.83198391,100.72,100.68,22.73321429]
[1769981232465,16.35806543,100.73,100.69,12.80106911]
[1769981232767,3.83198391,100.72,100.68,22.73297663]
[1769981233162,3.83198391,100.72,100.68,12.80053803]
[1769981233456,3.83198391,100.72,100.68,22.73283406]
[1769981234261,13.76066407,100.72,100.68,22.73283406]
[1769981237674,3.83198391,100.71,100.68,13.24590117]
[1769981238149,13.76066407,100.72,100.68,13.24590117]
[1769981238664,23.24759696,100.72,100.68,13.24590117]
[1769981238958,13.76066407,100.72,100.68,13.24590117]
[1769981239663,3.83198391,100.72,100.69,3.31005449]
[1769981239842,1e-08,100.73,100.71,9.48693289]
[1769981240049,1e-08,100.73,100.72,9.48693289]
[1769981240249,1e-08,100.74,100.72,9.48693289]
[1769981240451,1e-08,100.75,100.73,9.48693289]
[1769981240650,1e-08,100.75,100.7,4.27527085]
[1769981240651,1e-08,100.75,100.74,37.08693289]
[1769981240965,14.0507474,100.79,100.74,37.08693289]
[1769981241161,20.27001097,100.81,100.75,37.08693289]
[1769981241381,4.12872435,100.8,100.76,37.08693289]
[1769981241660,14.04945528,100.8,100.76,37.52445867]
[1769981241865,14.04945528,100.8,100.76,47.01139156]
[1769981242560,4.12872435,100.79,100.76,37.08693289]
[1769981242763,13.61565724,100.79,100.74,37.08693289]
[1769981242956,13.61565724,100.79,100.74,47.01296266]
[1769981243266,4.12872435,100.79,100.75,9.92527375]
[1769981243471,4.12872435,100.78,100.66,9.48693289]
[1769981243664,9.92457324,100.76,100.72,9.48693289]
[1769981243874,4.12872435,100.76,100.72,37.06693289]
[1769981244066,4.12872435,100.77,100.73,9.48693289]
[1769981244780,4.12872435,100.76,100.71,37.06693289]